bitfinex/quotes_ETHUSD_20260113
["timestamp","ask_amount","ask_price","bid_price","bid_amount"]
[1768322649163,4.72760254,3186.5,3185.7,0.001]
[1768322649366,6.00197976,3186.5,3185.7,0.001]
[1768322650674,9.14029271,3186.5,3185.7,0.001]
[1768322651086,6.27470664,3187.4,3186.4,5.99888555]
[1768322651373,0.246,3187.3,3186.4,5.99888555]
[1768322651532,6.24717784,3187.3,3186.1,5.99968755]
[1768322651932,0.246,3187.3,3186.1,5.99968755]
[1768322652166,3.13735332,3187.4,3186.1,5.99968755]
[1768322652366,3.13727758,3187.5,3186.1,5.99968755]
[1768322652664,6.00117784,3187.4,3186.2,5.99888555]
[1768322652958,6.00117784,3187.4,3186.3,6.91271377]
[1768322653161,6.24717784,3187.4,3186.3,6.90975141]
[1768322654364,6.24717784,3187.4,3186.3,6.90678905]
[1768322654747,12.27608136,3187.3,3186.3,6.90678905]
[1768322654948,6.00117784,3187.2,3186.1,0.000802]
[1768322655675,0.000802,3186.5,3186.0,0.001]
[1768322655982,6.14555273,3186.4,3185.7,0.001]
[1768322656488,6.14555273,3186.4,3185.2,6.28879859]
[1768322656698,3.13843643,3186.3,3185.2,6.28879859]
[1768322656985,3.13843643,3186.3,3185.2,7.23163295]
[1768322657198,0.246,3186.2,3184.9,6.53479859]
[1768322657377,0.246,3186.2,3185.2,6.28879859]
[1768322657566,0.246,3186.2,3185.2,6.28583604]
[1768322658682,0.246,3186.2,3185.2,6.28287349]
[1768322658977,3.38456581,3186.2,3185.3,0.66329212]
[1768322659185,5.90035473,3186.5,3185.3,6.95209071]
[1768322659371,0.246,3186.3,3185.3,6.95209071]
[1768322659979,0.246,3186.3,3185.3,6.94912816]
[1768322660980,6.52300256,3186.3,3185.3,6.94912816]
[1768322661146,3.38450128,3186.3,3185.4,0.42600668]
[1768322662256,3.38450128,3186.3,3185.3,6.94616561]
[1768322662557,12.42255529,3186.3,3185.3,6.94616561]
[1768322662754,9.28405401,3186.3,3185.3,6.94616561]
[1768322662959,9.28405401,3186.3,3185.4,6.28879859]
[1768322663499,0.000802,3186.5,3185.4,6.28583604]
[1768322663655,0.000802,3186.5,3185.6,6.28879859]
[1768322664576,0.000802,3186.5,3185.8,6.28583604]
[1768322665779,0.000802,3186.5,3185.8,6.28287349]
[1768322666967,0.000802,3186.5,3185.8,6.27991094]
[1768322668179,0.000802,3186.5,3185.8,6.27694839]
[1768322669114,0.000802,3186.5,3185.7,0.001]
[1768322669302,0.000802,3186.5,3185.8,6.28583604]
[1768322670492,0.000802,3186.5,3185.8,6.28287349]
[1768322671404,0.000802,3186.5,3185.7,0.001]
[1768322671804,0.000802,3186.5,3185.5,7.29509732]
[1768322672340,3.13833793,3186.4,3185.5,7.29509732]
[1768322672616,9.03789066,3186.4,3185.5,7.29509732]
[1768322672922,12.17622859,3186.4,3185.5,7.29213477]
[1768322673491,12.17622859,3186.4,3185.5,6.28879859]
[1768322674098,12.17622859,3186.4,3185.5,6.28583604]
[1768322674611,5.89955273,3186.3,3185.4,0.246]
[1768322674802,9.03803682,3186.3,3185.4,0.246]
[1768322675195,9.03803682,3186.3,3185.4,0.24303745]
[1768322675608,6.18815248,3186.2,3185.4,0.24303745]
[1768322675898,6.18815248,3185.9,3184.9,9.23233635]
[1768322676111,6.18815248,3185.9,3185.0,6.0926096]
[1768322676329,6.18815248,3185.9,3185.0,6.08964705]
[1768322676743,6.18815248,3185.9,3185.1,6.0926096]
[1768322677632,6.18815248,3185.8,3185.3,0.001]
[1768322678146,6.43415248,3185.8,3184.9,6.3386096]
[1768322678358,6.43415248,3185.8,3184.1,6.9915647]
[1768322678359,6.43415248,3185.8,3184.7,6.0926096]
[1768322678540,10.91533347,3185.6,3184.7,6.0926096]
[1768322678747,6.18815248,3185.6,3184.7,6.0926096]
[1768322679054,9.32737351,3185.6,3184.7,6.08964668]
[1768322679355,6.18815248,3185.5,3184.7,6.08964668]
[1768322680347,6.18815248,3185.5,3184.7,6.08668376]
[1768322680549,6.18815248,3185.5,3184.5,6.3386096]
[1768322680960,9.32747564,3185.4,3184.5,6.3386096]
[1768322681159,9.32747564,3185.4,3184.2,6.0926096]
[1768322681160,11.16133347,3185.3,3184.2,6.0926096]
[1768322681524,6.18815248,3185.2,3184.2,6.0926096]
[1768322682223,0.246,3185.3,3184.2,6.08964668]
[1768322682444,0.246,3185.3,3184.2,10.81682767]
[1768322682753,6.43415248,3185.3,3184.3,6.0926096]
[1768322682920,3.13971742,3185.0,3184.1,6.3396096]
[1768322683428,9.3278699,3185.0,3184.1,6.3396096]
[1768322684753,12.46758732,3185.0,3184.1,6.0936096]
[1768322685750,9.3278699,3185.0,3184.1,6.0936096]
[1768322685975,12.46758732,3185.0,3184.1,6.0936096]
[1768322686340,9.3278699,3185.0,3184.1,6.0936096]
[1768322686867,6.18815248,3184.9,3184.1,0.001]
[1768322687584,9.32801479,3184.9,3184.1,0.001]
[1768322687878,9.32801479,3184.9,3184.1,6.0936096]
[1768322688081,6.18815248,3184.9,3184.1,6.0936096]
[1768322688256,9.32797262,3184.9,3184.1,6.0936096]
[1768322688649,3.13976011,3185.0,3184.1,6.0936096]
[1768322689147,6.18815248,3184.9,3184.1,0.001]
[1768322690985,6.18815248,3184.8,3184.4,0.001]
[1768322691148,6.43415248,3184.8,3184.1,0.001]
[1768322691772,9.32816566,3184.7,3184.1,0.001]
[1768322692698,12.46817884,3184.7,3184.1,0.001]
[1768322693186,6.18815248,3184.6,3184.1,0.001]
[1768322693867,3.14021039,3184.5,3184.1,0.001]
[1768322695700,3.14015514,3184.6,3184.1,0.001]
[1768322695920,6.18815248,3185.1,3184.1,6.0936096]
[1768322696222,0.246,3184.9,3184.1,6.0936096]
[1768322696422,6.27844922,3185.5,3184.2,6.0926096]
[1768322696423,12.4666017,3185.5,3184.2,6.0926096]
[1768322696723,3.13922461,3185.5,3184.6,6.0926096]
[1768322696868,3.13922461,3185.5,3184.8,6.0926096]
[1768322697069,4.4817909,3185.5,3184.4,6.0926096]
[1768322697703,3.14112606,3185.6,3184.4,6.0926096]
[1768322698001,0.002,3185.6,3184.5,6.0926096]
[1768322698207,0.002,3185.6,3184.7,6.0926096]
[1768322700490,0.002,3185.6,3184.9,6.0926096]
[1768322701090,0.002,3185.6,3184.7,6.0926096]
[1768322701091,6.19015248,3185.6,3184.7,6.0926096]
[1768322701310,6.19015248,3185.6,3184.8,0.246]
[1768322701523,6.19015248,3185.6,3184.7,6.3386096]
[1768322701893,6.19015248,3185.6,3184.7,6.0926096]
[1768322702110,0.002,3185.6,3184.7,6.3386096]
[1768322703608,4.4837909,3185.6,3184.6,6.3386096]
[1768322704197,3.13922461,3185.5,3184.6,6.3386096]
[1768322704426,6.28026932,3185.6,3184.6,6.3386096]
[1768322704726,3.14114408,3185.6,3184.7,6.0926096]
[1768322705021,0.002,3185.3,3184.7,6.0926096]
[1768322706194,0.002,3185.3,3184.8,3.13991459]
[1768322706396,0.002,3185.3,3184.9,5.88142566]
[1768322706799,0.002,3186.0,3185.5,5.88142566]
[1768322707116,0.002,3186.0,3185.2,4.73287343]
[1768322707117,0.002,3186.0,3185.7,5.88142566]
[1768322707494,9.44391786,3186.0,3184.9,5.88142566]
[1768322707699,6.30313488,3185.9,3185.0,6.12742566]
[1768322707922,6.30313488,3185.9,3184.8,5.88142566]
[1768322708421,6.30313488,3185.7,3184.8,9.02132809]
[1768322708726,6.30313488,3185.7,3184.8,6.40421874]
[1768322709097,6.54913488,3185.7,3184.5,5.88142566]
[1768322709352,6.30313488,3185.4,3184.1,0.001]
[1768322709634,6.30313488,3185.1,3184.1,0.001]
[1768322709810,6.30313488,3184.9,3184.1,0.001]
[1768322710328,0.246,3185.1,3184.2,5.88142566]
[1768322710950,6.30313488,3185.3,3184.2,9.02192358]
[1768322711101,0.246,3185.2,3184.2,5.88142566]
[1768322711502,0.246,3185.2,3184.2,9.02191508]
[1768322711796,0.246,3185.2,3184.2,5.88142566]
[1768322712634,3.13961885,3185.1,3184.2,5.88142566]
[1768322714675,3.13958595,3185.2,3184.4,5.88242566]
[1768322714846,3.38545649,3185.3,3184.4,6.78470902]
[1768322715941,3.38545649,3185.3,3184.5,6.06505326]
[1768322716867,0.246,3185.3,3184.5,6.06505326]
[1768322717035,3.13914856,3185.6,3184.5,6.06505326]
[1768322717036,3.13883047,3185.9,3184.6,6.06505326]
[1768322717237,0.246,3185.8,3184.8,6.06505326]
[1768322717436,3.38483047,3185.9,3184.8,6.06505326]
[1768322717743,12.39681938,3185.9,3184.8,6.06505326]
[1768322719137,9.25796071,3185.9,3184.8,9.20487968]
[1768322719330,6.11913024,3185.9,3184.9,7.13359568]
[1768322719529,9.25799564,3185.9,3184.9,7.13359568]
[1768322719955,9.25799564,3185.9,3185.1,0.001]
[1768322720358,0.002,3186.0,3185.1,6.06605326]
[1768322720562,0.002,3186.0,3185.3,6.06505326]
[1768322720730,3.14073846,3186.0,3185.3,6.06505326]
[1768322721163,0.002,3186.0,3185.3,6.06505326]
[1768322721579,5.87513024,3186.0,3185.2,0.60660533]
[1768322721874,5.87313024,3185.8,3185.1,0.001]
[1768322722083,5.87313024,3185.6,3184.5,9.20518985]
[1768322722380,5.87313024,3185.6,3184.6,3.14008117]
[1768322722755,5.87313024,3185.6,3184.7,3.14001096]
[1768322723358,9.01232141,3185.6,3184.6,9.2051074]
[1768322725849,5.87313024,3185.6,3184.7,6.06505326]
[1768322726050,0.246,3185.7,3184.7,6.09645339]
[1768322726251,0.246,3185.7,3184.7,6.06505326]
[1768322727181,6.11913024,3185.7,3184.6,3.14005414]
[1768322727382,6.11913024,3185.7,3184.7,6.06505326]
[1768322727754,6.11913024,3185.7,3184.7,9.20503022]
[1768322727959,6.11913024,3185.7,3184.8,6.0964524]
[1768322728256,6.11913024,3185.7,3184.7,6.27999014]
[1768322728257,5.87313024,3185.6,3184.7,3.13997696]
[1768322729329,5.87313024,3185.9,3184.8,6.06505326]
[1768322729498,6.27957749,3186.0,3184.8,6.06505326]
[1768322729697,6.27957749,3186.0,3185.0,6.06505326]
[1768322729894,5.87313024,3185.9,3184.9,1.23450165]
[1768322730094,5.87313024,3185.9,3184.8,0.246]
[1768322730995,5.87313024,3185.9,3184.8,3.38591354]
[1768322732018,9.01205923,3185.8,3184.8,3.38591354]
[1768322732219,9.01205923,3185.8,3184.9,6.06505326]
[1768322732419,9.01205923,3185.8,3185.0,0.001]
[1768322732902,0.002,3185.7,3185.0,0.001]
[1768322733528,0.002,3185.7,3185.0,6.06605326]
[1768322734014,0.002,3185.7,3185.0,9.20573185]
[1768322734334,0.002,3185.7,3185.1,6.06505326]
[1768322736537,0.002,3185.7,3185.0,0.001]
[1768322736744,6.38357972,3185.6,3185.0,0.001]
[1768322738260,9.52270844,3185.6,3185.0,0.001]
[1768322738758,9.76870844,3185.6,3185.0,0.001]
[1768322739052,3.38512872,3185.6,3185.0,0.001]
[1768322739341,3.38512673,3185.6,3185.0,0.001]
[1768322739711,0.246,3185.6,3185.0,0.001]
[1768322739938,0.246,3185.6,3185.0,6.35785235]
[1768322740138,0.002,3185.7,3185.0,6.35785235]
[1768322740929,0.002,3185.7,3185.1,6.35685235]
[1768322741152,0.002,3185.7,3185.1,6.38824853]
[1768322741543,0.002,3185.7,3185.1,6.35685235]
[1768322741850,3.14078129,3186.0,3185.1,6.35685235]
[1768322741851,0.002,3186.0,3185.6,6.35685235]
[1768322742326,0.002,3186.0,3185.7,6.35685235]
[1768322744840,0.002,3186.0,3185.5,6.60285235]
[1768322745839,0.002,3185.7,3185.5,6.60285235]
[1768322746039,0.002,3185.7,3185.6,0.97421377]
[1768322748245,0.002,3185.7,3185.6,7.33106612]
[1768322749260,0.002,3185.7,3185.6,10.47019218]
[1768322749960,0.002,3186.0,3185.6,7.33106612]
[1768322750160,0.002,3186.0,3185.6,10.47017659]
[1768322750328,0.002,3186.0,3185.6,7.33106612]
[1768322750534,0.002,3186.0,3185.6,10.47018751]
[1768322751057,0.002,3186.0,3185.6,7.33106612]
[1768322751876,0.002,3186.0,3185.7,6.35685235]
[1768322752174,0.002,3186.0,3185.6,4.11329792]
[1768322752360,0.002,3186.0,3185.7,7.42846738]
[1768322753372,0.002,3186.0,3185.4,3.13927493]
[1768322753560,0.002,3186.0,3185.5,3.13921556]
[1768322753943,0.002,3186.0,3185.5,9.49606791]
[1768322754143,0.002,3186.0,3185.6,0.03139126]
[1768322754576,0.002,3186.0,3185.7,9.4958508]
[1768322754759,0.002,3186.0,3185.7,10.47317501]
[1768322754959,0.002,3186.0,3185.8,6.35685235]
[1768322755372,0.002,3186.0,3185.8,6.38824163]
[1768322755575,0.000802,3186.5,3186.1,6.35685235]
[1768322756760,0.000802,3186.5,3186.0,6.35685235]
[1768322756970,0.000802,3186.5,3186.1,7.55242063]
[1768322757767,0.248,3187.2,3186.1,7.55242063]
[1768322757984,0.002,3187.2,3186.1,7.55242063]
[1768322758184,0.002,3187.2,3186.1,7.55322271]
[1768322758680,0.002,3187.2,3186.3,6.35685235]
[1768322758982,0.002,3187.2,3186.5,6.35685235]
[1768322759187,0.002,3187.2,3186.7,6.35685235]
[1768322760792,0.002,3187.2,3186.9,6.35685235]
[1768322761364,0.002,3187.6,3187.0,6.35685235]
[1768322761688,0.002,3187.6,3187.2,6.35685235]
[1768322761893,0.002,3187.6,3187.2,7.01713758]
[1768322762865,0.002,3187.6,3187.2,10.1546777]
[1768322764001,0.002,3187.6,3187.2,7.01713758]
[1768322764415,0.002,3187.6,3187.2,10.15464811]
[1768322764618,0.002,3187.6,3187.2,7.01713758]
[1768322765896,0.002,3187.6,3187.2,0.66028523]
[1768322766497,0.002,3187.6,3187.3,0.6705374]
[1768322768125,0.002,3187.6,3187.1,0.246]
[1768322769159,0.002,3187.6,3187.1,3.38364819]
[1768322769308,0.002,3187.6,3187.3,5.79908872]
[1768322769847,0.002,3187.8,3187.3,5.79908872]
[1768322770046,0.002,3187.8,3187.3,10.52158467]
[1768322770210,0.002,3187.8,3187.4,1.67966514]
[1768322770409,0.002,3187.8,3187.4,7.47875386]
[1768322770608,0.002,3187.8,3187.5,5.79908872]
[1768322771109,0.002,3187.6,3187.5,5.79908872]
[1768322771530,0.002,3187.6,3187.4,1.67966514]
[1768322771847,0.002,3187.6,3187.5,1.06161764]
[1768322772417,0.002,3187.6,3187.5,4.19887254]
[1768322772624,0.002,3187.9,3187.5,4.19887254]
[1768322773725,6.00046254,3188.6,3187.8,4.72249595]
[1768322773926,6.00046254,3188.6,3187.7,5.79908872]
[1768322774160,6.00046254,3188.6,3187.7,6.28201757]
[1768322774356,6.00046254,3188.6,3187.8,5.79908872]
[1768322774653,6.00046254,3188.8,3188.0,4.72249595]
[1768322775181,6.00046254,3188.8,3187.7,1.55952162]
[1768322775182,6.00046254,3188.8,3187.7,1.31352162]
[1768322775474,6.00046254,3188.8,3187.5,3.3832549]
[1768322775774,6.00046254,3188.5,3187.5,3.3832549]
[1768322776258,6.00046254,3188.5,3187.5,6.5205098]
[1768322777347,6.00046254,3188.5,3187.5,12.63738541]
[1768322777945,5.83154138,3188.3,3187.2,3.13745875]
[1768322778192,5.83154138,3188.3,3187.5,3.13724124]
[1768322778395,5.83154138,3188.3,3187.3,3.38343648]
[1768322778396,5.83154138,3188.1,3187.4,3.13730867]
[1768322778843,5.83154138,3188.1,3187.5,3.13722842]
[1768322779209,3.38236933,3188.4,3187.5,3.13722842]
[1768322779210,5.83154138,3188.3,3187.5,3.13722842]
[1768322779983,0.246,3188.4,3187.5,3.13722842]
[1768322779984,0.002,3189.2,3188.5,6.11687561]
[1768322780196,2.53785443,3189.3,3189.0,4.72249595]
[1768322780391,2.53785443,3189.3,3188.7,4.72249595]
[1768322780601,2.53785443,3189.3,3188.6,0.246]
[1768322781095,2.53785443,3189.3,3188.6,6.36287561]
[1768322781505,5.67336368,3189.3,3188.6,6.36287561]
[1768322782092,5.67336368,3189.3,3188.6,0.246]
[1768322782293,5.67336368,3189.3,3188.1,9.25347895]
[1768322782294,8.80887293,3189.3,3188.1,9.25347895]
[1768322782496,8.80887293,3189.3,3188.2,3.13650263]
[1768322782709,5.67336368,3189.3,3188.2,0.246]
[1768322782885,5.67336662,3189.3,3188.2,0.246]
[1768322783084,8.80887881,3189.3,3188.3,3.38241145]
[1768322783290,5.67336662,3189.3,3188.3,3.38241145]
[1768322783503,0.002,3189.0,3188.3,3.38241145]
[1768322783696,0.002,3189.0,3188.0,6.11687561]
[1768322783907,0.002,3189.0,3188.2,6.27313216]
[1768322784094,0.002,3189.0,3188.3,1.48500078]
[1768322785807,0.002,3189.0,3188.3,7.60187639]
[1768322786002,0.002,3189.0,3188.4,3.13636933]
[1768322786202,5.83354138,3189.0,3188.0,6.11687561]
[1768322786401,5.83354138,3189.0,3188.2,3.13651017]
[1768322786802,5.83354138,3189.0,3188.3,3.13643742]
[1768322788122,8.969331,3189.0,3188.2,3.13652876]
[1768322788419,5.83354138,3189.0,3188.2,3.13653015]
[1768322789126,5.83354138,3189.0,3188.3,3.13644154]
[1768322789418,5.83154138,3188.8,3188.0,3.38273988]
[1768322789734,5.83154138,3188.6,3188.1,3.13665213]
[1768322789921,5.83154138,3188.6,3188.0,3.38272592]
[1768322790103,5.83154138,3188.6,3187.6,6.11687561]
[1768322790304,5.83154138,3188.6,3188.0,3.382727]
[1768322790893,5.83154138,3188.6,3187.4,6.11687561]
[1768322791208,0.002,3189.0,3186.5,3.13818628]
[1768322791209,5.83154138,3188.4,3187.5,3.13716854]
[1768322791413,5.83154138,3188.8,3187.9,3.13682218]
[1768322792224,3.13607426,3188.7,3187.9,3.13682218]
[1768322792427,8.96761564,3188.7,3187.8,3.16829099]
[1768322792721,8.96761564,3188.7,3187.7,0.246]
[1768322792722,5.83154138,3188.6,3187.7,0.246]
[1768322792926,5.83154138,3188.6,3187.7,3.13705781]
[1768322793092,5.83154138,3188.6,3187.8,3.13695375]
[1768322793292,6.27214852,3188.7,3187.1,6.11687561]
[1768322793293,5.83154138,3188.4,3187.1,6.11687561]
[1768322793492,5.83154138,3188.4,3186.1,3.13940437]
[1768322793493,5.83154138,3188.4,3187.2,0.246]
[1768322793720,5.83154138,3188.2,3187.3,3.13743909]
[1768322793920,5.83154138,3188.2,3187.2,0.246]
[1768322793921,5.83154138,3188.2,3187.4,3.13734263]
[1768322794128,5.83154138,3188.2,3187.3,3.13741685]
[1768322794631,8.96820585,3188.1,3187.2,3.3835265]
[1768322794934,3.13636933,3188.4,3187.3,5.89053503]
[1768322795108,6.13183998,3188.3,3187.4,1.24116117]
[1768322795307,6.13183998,3188.3,3187.4,7.1316962]
[1768322795821,6.13183998,3188.3,3187.4,7.3776962]
[1768322796519,6.13183998,3188.3,3188.0,0.001]
[1768322796834,3.38228289,3188.5,3187.6,5.89053503]
[1768322797606,12.65040576,3188.5,3187.6,5.89053503]
[1768322797997,6.13183998,3188.4,3187.5,3.1372549]
[1768322799101,0.1973482,3188.3,3187.5,3.1372549]
[1768322799530,9.46566111,3188.3,3187.5,3.1372549]
[1768322800110,6.32918818,3188.3,3187.5,3.1372549]
[1768322800313,0.1973482,3188.3,3187.5,9.60452772]
[1768322802032,0.1973482,3188.3,3187.6,5.89053503]
[1768322802209,3.13568615,3189.1,3188.0,5.89053503]
[1768322802413,3.13779434,3189.0,3188.2,5.89053503]
[1768322802612,3.13779434,3189.0,3188.3,6.50418853]
[1768322802940,3.13779434,3189.0,3188.3,0.6136535]
[1768322803143,12.40542866,3189.0,3188.3,0.6136535]
[1768322803353,9.26963432,3189.0,3188.3,0.6136535]
[1768322803824,9.26963432,3189.0,3188.3,3.75005727]
[1768322803825,0.002,3189.0,3188.3,3.75005727]
[1768322804021,0.002,3189.0,3188.4,0.71325396]
[1768322805034,3.13780751,3189.0,3188.4,0.71325396]
[1768322805233,3.13780751,3189.0,3188.3,0.6136535]
[1768322805439,0.002,3189.0,3188.3,0.6136535]
[1768322805607,6.13383998,3189.0,3188.2,0.246]
[1768322806313,6.13383998,3189.0,3188.2,3.38251549]
[1768322806632,6.13383998,3189.0,3188.2,0.246]
[1768322806832,6.13383998,3189.0,3187.7,5.89053503]
[1768322807130,6.13383998,3189.0,3187.8,3.13687742]
[1768322807332,6.13183998,3188.8,3187.8,3.13687742]
[1768322807900,6.13183998,3188.6,3187.8,3.13695965]
[1768322809536,6.13183998,3188.6,3187.9,0.001]
[1768322810042,0.002,3188.3,3187.9,0.001]
[1768322813136,0.002,3188.6,3188.2,5.89053503]
[1768322813327,0.002,3189.0,3188.2,6.72558853]
[1768322814030,0.002,3189.0,3188.4,5.89053503]
[1768322814432,6.13383998,3189.0,3188.3,6.27293542]
[1768322814619,0.002,3189.0,3188.3,6.27293542]
[1768322814818,0.002,3189.0,3188.4,1.29985239]
[1768322815844,0.002,3189.0,3188.4,1.54585239]
[1768322816538,0.002,3189.0,3188.4,4.68216597]
[1768322816752,0.002,3189.0,3188.5,5.89053503]
[1768322818628,0.002,3189.0,3188.6,6.27234522]
[1768322818936,0.002,3189.0,3188.7,0.62723452]
[1768322819821,0.002,3189.0,3188.5,3.13623023]
[1768322820447,0.002,3189.0,3188.5,3.16759293]
[1768322821047,0.002,3189.0,3188.5,3.13623023]
[1768322821215,0.002,3189.0,3188.4,3.13631775]
[1768322821835,0.002,3189.0,3188.5,3.13625037]
[1768322822217,6.13383998,3189.0,3188.4,3.13636531]
[1768322822442,6.13383998,3189.0,3188.3,3.38239666]
[1768322822826,6.13183998,3188.8,3187.9,0.001]
[1768322823054,6.13183998,3188.8,3188.2,0.001]
[1768322823259,6.13183998,3188.8,3187.9,0.001]
[1768322823453,6.13183998,3188.6,3187.9,0.001]
[1768322824746,3.13816645,3188.7,3187.9,0.001]
[1768322824946,3.13808171,3188.7,3187.9,6.07602766]
[1768322825158,3.13808171,3188.7,3188.0,0.60760277]
[1768322825467,5.79710073,3188.6,3187.9,0.001]
[1768322826867,3.13627097,3188.5,3187.9,0.001]
[1768322827067,6.27254194,3188.5,3187.9,0.001]
[1768322827382,6.27254194,3188.5,3187.2,3.13747899]
[1768322827383,5.79710073,3188.4,3187.2,3.13747899]
[1768322827533,5.79710073,3188.4,3187.1,3.1376262]
[1768322827534,6.04310073,3188.4,3187.1,3.1376262]
[1768322827733,5.79710073,3188.2,3187.1,3.1376262]
[1768322827967,5.79710073,3188.2,3187.4,3.13728271]
[1768322828200,5.79710073,3188.2,3187.4,3.16865624]
[1768322828346,3.13627097,3188.5,3187.7,6.07502766]
[1768322828680,3.13621431,3188.6,3187.7,6.07502766]
[1768322829039,6.27242862,3188.6,3187.7,9.21205218]
[1768322829376,6.27242862,3188.6,3187.7,6.07502766]
[1768322829778,12.06952935,3188.6,3187.6,0.246]
[1768322829980,5.79710073,3188.5,3187.6,0.246]
[1768322830773,5.79710073,3188.5,3187.4,3.13734977]
[1768322831069,6.27242862,3188.6,3187.3,3.13739377]
[1768322831070,5.79710073,3188.3,3187.3,3.13739377]
[1768322831271,5.79710073,3188.1,3186.4,6.07502766]
[1768322831473,5.79710073,3188.1,3186.5,6.07502766]
[1768322831762,5.79710073,3187.9,3186.7,3.13799049]
[1768322832167,5.79710073,3187.9,3186.9,3.13784475]
[1768322832347,6.04310073,3187.8,3186.9,3.13784475]
[1768322832733,6.04310073,3187.8,3186.8,3.13790305]
[1768322832938,6.04310073,3187.8,3186.5,6.27647888]
[1768322832939,5.79710073,3187.7,3186.5,6.27647888]
[1768322833159,5.79710073,3187.7,3186.6,0.96607617]
[1768322834248,5.79710073,3187.7,3186.5,6.27647888]
[1768322834963,5.79710073,3187.5,3186.5,3.13823944]
[1768322836162,5.79710073,3187.5,3186.1,5.75622894]
[1768322836363,5.79710073,3187.5,3186.3,3.13839709]
[1768322836869,5.79710073,3187.5,3186.2,0.246]
[1768322837072,6.17884027,3187.3,3186.3,3.16982079]
[1768322837374,3.13735332,3187.4,3186.4,5.75542686]
[1768322837574,6.17884027,3187.3,3186.3,3.13843643]
[1768322838461,6.17884027,3187.3,3186.2,3.38449912]
[1768322838668,6.17884027,3188.0,3186.3,5.78681122]
[1768322838857,6.17884027,3188.0,3186.4,5.75542686]
[1768322839058,3.13666447,3188.1,3186.6,5.75542686]
[1768322839259,6.17884027,3188.0,3186.8,5.75542686]
[1768322839568,0.246,3188.1,3187.0,5.75542686]
[1768322839769,0.002,3188.2,3187.2,5.75542686]
[1768322839971,3.13856927,3188.2,3187.2,5.75542686]
[1768322840138,3.13856927,3188.2,3187.2,6.00142686]
[1768322840344,9.31740954,3188.2,3187.2,0.246]
[1768322841294,6.21022281,3188.1,3187.2,3.1375502]
[1768322841442,6.17884027,3188.1,3187.2,3.1375502]
[1768322842172,0.002,3188.2,3187.2,6.2751004]
[1768322842468,0.002,3188.2,3187.3,5.78680137]
[1768322842850,0.002,3188.2,3187.3,5.75542686]
[1768322843173,3.13857385,3188.2,3187.4,3.13735332]
[1768322843578,3.13857385,3188.2,3187.3,8.8928319]
[1768322843777,3.13857385,3188.2,3187.3,3.13740504]
[1768322843964,6.17884027,3188.1,3187.0,9.13914753]
[1768322844138,6.17884027,3188.1,3187.3,3.13744601]
[1768322845686,9.3155105,3188.1,3187.1,8.8930755]
[1768322846049,3.13861469,3188.2,3187.2,5.75542686]
[1768322846269,0.002,3188.2,3187.2,5.75542686]
[1768322846472,0.002,3188.2,3187.4,5.75542686]
[1768322846868,3.13861011,3188.2,3187.4,5.75542686]
[1768322847068,6.27522022,3188.2,3187.1,12.03072414]
[1768322847350,6.27522022,3188.2,3187.2,5.75542686]
[1768322847760,0.002,3188.2,3187.3,3.13745176]
[1768322848348,6.21222281,3188.2,3187.2,3.13750131]
[1768322848580,6.17884027,3188.0,3187.2,3.13750131]
[1768322848778,0.002,3188.2,3187.2,3.13750131]
[1768322849072,0.002,3188.2,3187.2,8.89292817]
[1768322849248,6.18084027,3188.2,3187.2,8.89292817]
[1768322849876,6.17884027,3188.0,3187.2,3.13750131]
[1768322850086,9.3174454,3188.2,3187.2,3.13750131]
[1768322850292,12.45405053,3188.2,3187.2,3.13750131]
[1768322850988,0.002,3187.9,3187.2,3.13750131]
[1768322851194,0.002,3187.9,3187.3,0.03137451]
[1768322851495,0.002,3187.9,3187.3,5.75542686]
[1768322851695,0.002,3189.0,3187.9,5.75542686]
[1768322851997,0.002,3189.0,3187.3,0.03137451]
[1768322851998,0.002,3189.0,3188.1,5.75542686]
[1768322853975,0.002,3189.0,3188.2,3.13656608]
[1768322854491,0.002,3189.0,3188.2,8.89199294]
[1768322854709,0.002,3189.0,3188.2,5.75542686]
[1768322856251,0.002,3189.0,3188.4,5.82264096]
[1768322856856,3.13750858,3189.3,3188.5,6.06864096]
[1768322857057,3.13750858,3189.3,3188.3,3.38246771]
[1768322857058,6.27301716,3189.3,3188.3,3.38246771]
[1768322857269,6.27301716,3189.3,3188.3,9.20510867]
[1768322857494,3.13750858,3189.3,3188.4,5.82264096]
[1768322857806,3.13750858,3189.3,3188.4,7.05680682]
[1768322858669,6.27301716,3189.3,3188.4,7.05680682]
[1768322858975,0.03138254,3189.2,3188.4,1.23416586]
[1768322859171,0.03138254,3189.2,3188.3,3.38240731]
[1768322859377,12.40595819,3189.3,3188.4,3.13635672]
[1768322859573,6.27301716,3189.3,3188.4,5.82264096]
[1768322859774,6.16432357,3189.2,3188.1,8.95926091]
[1768322860354,6.13294103,3189.2,3187.4,1.51680286]
[1768322860560,6.13294103,3188.8,3187.3,5.82264096]
[1768322860784,6.13294103,3188.6,3187.3,8.96009074]
[1768322861060,6.16432357,3188.5,3187.3,5.82264096]
[1768322861891,6.13294103,3188.5,3187.3,5.82264096]
[1768322862466,6.13294103,3188.3,3187.0,6.27547199]
[1768322862792,6.27273866,3188.4,3187.1,0.6521472]
[1768322862793,6.37894103,3188.2,3187.1,0.6521472]
[1768322862985,6.13294103,3188.2,3187.1,0.6521472]
[1768322863185,6.37894103,3188.2,3187.1,0.6521472]
[1768322863386,6.37894103,3188.2,3187.6,0.001]
[1768322863985,0.246,3188.2,3187.1,6.47478816]
[1768322864169,0.246,3188.2,3187.2,5.85401646]
[1768322864782,3.13666447,3188.1,3187.3,3.13745176]
[1768322864988,3.13666447,3188.1,3187.2,8.96017024]
[1768322865391,3.13666447,3188.1,3187.2,8.96017598]
[1768322865571,6.13294103,3188.8,3187.3,5.82264096]
[1768322865774,6.13294103,3188.8,3187.4,6.06864096]
[1768322865775,6.13294103,3188.7,3187.4,6.06864096]
[1768322866591,0.246,3188.8,3187.6,5.82264096]
[1768322866785,6.27214852,3188.7,3187.8,5.82264096]
[1768322867586,3.13607426,3188.7,3187.8,5.82264096]
[1768322868195,6.27214852,3188.7,3187.8,5.82264096]
[1768322868895,6.27214852,3188.7,3187.8,8.9595886]
[1768322869097,3.13607426,3188.7,3187.8,8.9595886]
[1768322869396,3.13607426,3188.7,3187.8,3.13694764]
[1768322870099,3.13607426,3188.7,3187.9,5.82264096]
[1768322870305,12.40508955,3188.7,3187.8,1.20967093]